[Event "Cracovia Festival-A 2023"]
[Site "Krakow"]
[Date "2023.12.29"]
[Round "3.16"]
[White "Janzelj, Tim"]
[Black "Nemsadze, Daviti"]
[Result "0-1"]
[ECO "E20"]
[WhiteElo "2441"]
[BlackElo "2253"]
[Annotator "ChessBase"]
[PlyCount "120"]
[EventDate "2023.12.24"]
[EventType "swiss"]
[EventCountry "POL"]
[SourceTitle "playchess.com"]
[Source "ChessBase"]
[SourceQuality "1"]
[TimeControl "40/5400+30:1800+30"]

1. d4 {[%emt 0:00:14]} Nf6 {[%emt 0:00:38]} 2. c4 {[%emt 0:00:23]} e6 {[%emt 0:00:04]} 3. Nc3 {[%emt 0:00:04]} Bb4 {[%emt 0:00:04]} 4. Bd2 {[%emt 0:00:16]} b6 {[%emt 0:00:06]} 5. Nf3 {[%emt 0:00:07]} Bb7 {[%emt 0:00:03]} 6. e3 {[%emt 0:00:06]} Bxc3 {[%emt 0:00:04]} 7. Bxc3 {[%emt 0:00:10]} Ne4 {[%emt 0:00:04]} 8. Bb4 {[%emt 0:01:40]} c5 {[%emt 0:01:42]} 9. Ba3 {[%emt 0:00:55]} a5 {[%emt 0:00:07]} 10. Nd2 {[%emt 0:06:26]} Na6 {[%emt 0:04:47]} 11. b3 {[%emt 0:10:58]} Qf6 {[%emt 0:05:04]} 12. Nxe4 {[%emt 0:03:55]} Bxe4 {[%emt 0:01:47]} 13. f3 {[%emt 0:00:10]} Bg6 {[%emt 0:01:01]} 14. Bb2 {[%emt 0:06:49]} Nb4 {[%emt 0:01:26]} 15. Kf2 {[%emt 0:00:43]} O-O {[%emt 0:43:52]} 16. Qd2 {[%emt 0:01:02]} Qe7 {[%emt 0:05:57]} 17. h4 {[%emt 0:01:01]} h5 {[%emt 0:04:40]} 18. a3 {[%emt 0:04:27]} Na6 {[%emt 0:00:54]} 19. Rd1 {[%emt 0:09:19]} d6 {[%emt 0:01:44]} 20. Qc3 {[%emt 0:04:14]} e5 {[%emt 0:02:14]} 21. dxe5 {[%emt 0:02:10]} dxe5 {[%emt 0:01:25]} 22. Bd3 {[%emt 0:01:39]} Bxd3 {[%emt 0:00:51]} 23. Rxd3 {[%emt 0:00:02]} Rfd8 {[%emt 0:01:01]} 24. Rd5 {[%emt 0:02:05]} f6 {[%emt 0:03:09]} 25. Rhd1 {[%emt 0:00:15]} Nc7 {[%emt 0:00:05]} 26. R5d3 {[%emt 0:01:31]} Ne6 {[%emt 0:01:02]} 27. Qc2 {[%emt 0:01:08]} Rxd3 {[%emt 0:01:16]} 28. Rxd3 {[%emt 0:00:02]} Rd8 {[%emt 0:00:07]} 29. Ke2 {[%emt 0:01:28]} Rxd3 {[%emt 0:07:55]} 30. Qxd3 {[%emt 0:00:03]} Nf8 {[%emt 0:02:43]} 31. Qd5+ {[%emt 0:02:47]} Qe6 {[%emt 0:00:09]} 32. Kd3 {[%emt 0:20:44]} Kf7 {[%emt 0:00:17]} 33. Kc3 {[%emt 0:02:41]} Ng6 {[%emt 0:02:37]} 34. Qb7+ {[%emt 0:00:22]} Ne7 {[%emt 0:02:42]} 35. Qc7 {[%emt 0:02:43]} Qc6 {[%emt 0:01:32]} 36. Qd8 {[%emt 0:01:03]} Nf5 {[%emt 0:00:24]} 37. Qh8 {[%emt 0:04:00]} Nxe3 {[%emt 0:01:37]} 38. Qxh5+ {[%emt 0:00:03]} Kg8 {[%emt 0:00:19]} 39. Bc1 {[%emt 0:08:29]} Nxg2 {[%emt 0:00:06]} 40. Bd2 {[%emt 0:00:00]} Qd7 {[%emt 0:00:00]} 41. Kc2 {[%emt 0:02:17]} a4 {[%emt 0:04:16]} 42. b4 {[%emt 0:06:50]} Qe6 {[%emt 0:01:49]} 43. Kc3 {[%emt 0:01:12]} cxb4+ {[%emt 0:09:52]} 44. axb4 {[%emt 0:00:11]} a3 {[%emt 0:00:15]} 45. Qg4 {[%emt 0:01:13]} Qxg4 {[%emt 0:00:27]} 46. fxg4 {[%emt 0:00:02]} a2 {[%emt 0:02:26]} 47. Kb2 {[%emt 0:00:02]} Kf7 {[%emt 0:00:04]} 48. h5 {[%emt 0:01:22]} e4 {[%emt 0:00:17]} 49. g5 {[%emt 0:00:05]} fxg5 {[%emt 0:04:27]} 50. Bxg5 {[%emt 0:00:03]} e3 {[%emt 0:00:05]} 51. Kxa2 {[%emt 0:00:53]} e2 {[%emt 0:00:45]} 52. Bd2 {[%emt 0:00:02]} e1=Q 53. Bxe1 {[%emt 0:00:05]} Nxe1 {[%emt 0:00:12]} 54. Kb3 {[%emt 0:00:11]} Ke6 {[%emt 0:00:10]} 55. Ka4 {[%emt 0:00:30]} Kd7 {[%emt 0:00:25]} 56. Kb5 {[%emt 0:00:04]} Kc7 {[%emt 0:00:02]} 57. Ka6 {[%emt 0:00:56]} Nd3 {[%emt 0:00:34]} 58. b5 {[%emt 0:00:10]} Nc5+ {[%emt 0:00:04]} 59. Ka7 {[%emt 0:00:05]} Nb7 {[%emt 0:00:07]} 60. Ka6 {[%emt 0:00:09]} Nd6 {[%emt 0:00:04]} 0-1

[Event "Cracovia Festival-A 2023"]
[Site "Krakow"]
[Date "2023.12.29"]
[Round "3.17"]
[White "Dziewonski, Dariusz"]
[Black "Pajeken, Jakob Leon"]
[Result "0-1"]
[ECO "B51"]
[WhiteElo "2224"]
[BlackElo "2428"]
[Annotator "ChessBase"]
[PlyCount "126"]
[EventDate "2023.12.24"]
[EventType "swiss"]
[EventCountry "POL"]
[SourceTitle "playchess.com"]
[Source "ChessBase"]
[SourceQuality "1"]
[TimeControl "40/5400+30:1800+30"]

1. e4 {[%emt 0:00:05]} c5 {[%emt 0:00:04]} 2. Nf3 {[%emt 0:00:05]} d6 {[%emt 0:00:02]} 3. Bb5+ {[%emt 0:00:41]} Nd7 {[%emt 0:00:04]} 4. d4 {[%emt 0:01:16]} cxd4 {[%emt 0:00:06]} 5. Qxd4 {[%emt 0:00:05]} a6 {[%emt 0:00:08]} 6. Bxd7+ {[%emt 0:00:16]} Bxd7 {[%emt 0:01:27]} 7. c4 {[%emt 0:00:26]} Nf6 {[%emt 0:00:33]} 8. Bg5 {[%emt 0:01:15]} e6 {[%emt 0:08:18]} 9. Nc3 {[%emt 0:01:11]} Bc6 {[%emt 0:05:47]} 10. O-O {[%emt 0:04:00]} Be7 {[%emt 0:01:22]} 11. a4 {[%emt 0:09:13]} h6 {[%emt 0:05:52]} 12. Bh4 {[%emt 0:07:04]} O-O {[%emt 0:02:35]} 13. Rfd1 {[%emt 0:03:54]} Qa5 {[%emt 0:06:36]} 14. h3 {[%emt 0:11:44]} Rfd8 {[%emt 0:03:02]} 15. Qe3 {[%emt 0:04:09]} Rac8 {[%emt 0:07:55]} 16. Nd5 {[%emt 0:12:04]} Bxd5 {[%emt 0:03:57]} 17. exd5 {[%emt 0:03:07]} e5 {[%emt 0:00:19]} 18. b3 {[%emt 0:03:31]} Rd7 {[%emt 0:02:10]} 19. Qd2 {[%emt 0:07:44]} Qxd2 {[%emt 0:03:56]} 20. Nxd2 {[%emt 0:05:59]} g5 {[%emt 0:04:07]} 21. Bg3 {[%emt 0:00:07]} Nh5 {[%emt 0:00:17]} 22. Bh2 {[%emt 0:02:02]} Nf4 {[%emt 0:01:22]} 23. Bxf4 {[%emt 0:06:00]} exf4 {[%emt 0:00:12]} 24. Rac1 {[%emt 0:07:30]} a5 {[%emt 0:03:53]} 25. Nf3 {[%emt 0:01:06]} Bf6 {[%emt 0:00:44]} 26. Kf1 {[%emt 0:00:48]} Kg7 {[%emt 0:02:33]} 27. Nd4 {[%emt 0:01:37]} Bxd4 {[%emt 0:00:39]} 28. Rxd4 {[%emt 0:00:05]} Re7 {[%emt 0:00:40]} 29. Re1 {[%emt 0:03:25]} Rce8 {[%emt 0:00:49]} 30. Rxe7 {[%emt 0:00:26]} Rxe7 {[%emt 0:00:03]} 31. Rd2 {[%emt 0:00:26]} f5 {[%emt 0:05:14]} 32. b4 {[%emt 0:01:58]} axb4 {[%emt 0:04:38]} 33. Rb2 {[%emt 0:00:08]} Kf6 {[%emt 0:00:25]} 34. Rxb4 {[%emt 0:00:31]} Ke5 {[%emt 0:00:14]} 35. Ke2 {[%emt 0:01:04]} Kd4+ {[%emt 0:01:57]} 36. Kd2 {[%emt 0:00:03]} g4 {[%emt 0:00:44]} 37. c5+ {[%emt 0:02:53]} Kxc5 {[%emt 0:00:36]} 38. Rxf4 {[%emt 0:00:13]} gxh3 39. gxh3 {[%emt 0:00:13]} Rf7 {[%emt 0:00:47]} 40. Kd3 {[%emt 0:00:00]} Kxd5 {[%emt 0:00:00]} 41. Rh4 {[%emt 0:07:57]} Rh7 {[%emt 0:04:02]} 42. Rb4 {[%emt 0:07:17]} Ke5 {[%emt 0:02:56]} 43. Ke3 {[%emt 0:01:55]} Re7 {[%emt 0:02:56]} 44. Rh4 {[%emt 0:04:51]} Re6 {[%emt 0:01:29]} 45. Rb4 {[%emt 0:00:32]} Kd5+ {[%emt 0:00:31]} 46. Kd3 {[%emt 0:02:55]} Re4 {[%emt 0:00:23]} 47. Rb5+ {[%emt 0:00:03]} Ke6 {[%emt 0:00:10]} 48. a5 {[%emt 0:00:04]} Re5 {[%emt 0:00:39]} 49. Rxb7 {[%emt 0:00:43]} Rxa5 {[%emt 0:00:04]} 50. Rb3 {[%emt 0:02:33]} Ra4 {[%emt 0:03:41]} 51. Ke2 {[%emt 0:00:17]} Ke5 {[%emt 0:00:33]} 52. Kf3 {[%emt 0:01:22]} h5 {[%emt 0:10:11]} 53. Rb5+ {[%emt 0:01:11]} d5 {[%emt 0:00:32]} 54. Rb8 {[%emt 0:01:05]} Ra3+ {[%emt 0:01:00]} 55. Kg2 {[%emt 0:00:03]} d4 {[%emt 0:00:33]} 56. Re8+ {[%emt 0:00:30]} Kf4 {[%emt 0:00:51]} 57. Rd8 {[%emt 0:01:05]} d3 {[%emt 0:02:19]} 58. Rd4+ {[%emt 0:02:46]} Ke5 {[%emt 0:00:41]} 59. Rd8 {[%emt 0:00:05]} Ke4 {[%emt 0:00:23]} 60. Re8+ {[%emt 0:00:06]} Kd4 {[%emt 0:00:16]} 61. Rd8+ {[%emt 0:00:38]} Kc3 {[%emt 0:00:22]} 62. Rc8+ {[%emt 0:00:03]} Kd2 {[%emt 0:00:48]} 63. Rc5 {[%emt 0:00:39]} Rc3 {[%emt 0:00:56]} 0-1

[Event "Cracovia Festival-A 2023"]
[Site "Krakow"]
[Date "2023.12.29"]
[Round "3.19"]
[White "Cukrowski, Filip"]
[Black "Piekielny, Pawel"]
[Result "1-0"]
[ECO "E06"]
[WhiteElo "2402"]
[BlackElo "2250"]
[Annotator "ChessBase"]
[PlyCount "113"]
[EventDate "2023.12.24"]
[EventType "swiss"]
[EventCountry "POL"]
[SourceTitle "playchess.com"]
[Source "ChessBase"]
[SourceQuality "1"]
[TimeControl "40/5400+30:1800+30"]

1. d4 {[%emt 0:04:43]} Nf6 2. c4 {[%emt 0:00:05]} e6 {[%emt 0:00:09]} 3. g3 {[%emt 0:00:05]} d5 {[%emt 0:00:17]} 4. Bg2 {[%emt 0:00:11]} Be7 {[%emt 0:01:39]} 5. Nf3 {[%emt 0:00:37]} O-O {[%emt 0:00:07]} 6. O-O {[%emt 0:01:07]} dxc4 {[%emt 0:00:08]} 7. Ne5 {[%emt 0:06:20]} Nc6 {[%emt 0:00:10]} 8. Nxc6 {[%emt 0:30:41]} bxc6 {[%emt 0:00:47]} 9. e3 {[%emt 0:00:07]} Bd7 {[%emt 0:12:55]} 10. Nd2 {[%emt 0:04:45]} Rb8 {[%emt 0:02:19]} 11. Nxc4 {[%emt 0:01:13]} c5 {[%emt 0:00:09]} 12. dxc5 {[%emt 0:00:29]} Bb5 {[%emt 0:04:30]} 13. Qc2 {[%emt 0:00:21]} Bxc5 {[%emt 0:00:19]} 14. Rd1 {[%emt 0:00:51]} Qe7 {[%emt 0:00:55]} 15. b3 {[%emt 0:01:27]} Rfd8 {[%emt 0:01:48]} 16. Bb2 {[%emt 0:00:55]} Rxd1+ {[%emt 0:08:48]} 17. Rxd1 {[%emt 0:01:24]} Rd8 {[%emt 0:00:05]} 18. Rxd8+ {[%emt 0:05:40]} Qxd8 {[%emt 0:00:06]} 19. Bf3 {[%emt 0:00:19]} h6 {[%emt 0:03:02]} 20. h4 {[%emt 0:10:48]} Bb6 {[%emt 0:06:36]} 21. a4 {[%emt 0:01:01]} Bxc4 {[%emt 0:00:14]} 22. Qxc4 {[%emt 0:00:20]} Qd2 {[%emt 0:01:08]} 23. Qc3 {[%emt 0:08:07]} Ba5 {[%emt 0:05:09]} 24. Qxd2 {[%emt 0:00:58]} Bxd2 {[%emt 0:00:04]} 25. Kf1 {[%emt 0:02:20]} Nd7 {[%emt 0:14:16]} 26. Ke2 {[%emt 0:02:33]} Bb4 {[%emt 0:00:20]} 27. Kd3 {[%emt 0:03:48]} Be1 {[%emt 0:07:42]} 28. Bc6 {[%emt 0:08:31]} Nb8 {[%emt 0:06:48]} 29. Bg2 {[%emt 0:01:29]} Nd7 {[%emt 0:01:02]} 30. Ke2 {[%emt 0:02:37]} Bb4 {[%emt 0:00:07]} 31. Kd3 {[%emt 0:00:16]} Be1 {[%emt 0:00:06]} 32. f4 {[%emt 0:01:21]} Bxg3 {[%emt 0:05:58]} 33. b4 {[%emt 0:00:03]} Bxh4 {[%emt 0:01:31]} 34. Bd4 {[%emt 0:00:10]} Be7 {[%emt 0:04:52]} 35. Kc4 {[%emt 0:00:02]} Nb6+ {[%emt 0:01:52]} 36. Kb3 {[%emt 0:00:43]} f6 {[%emt 0:08:09]} 37. a5 {[%emt 0:00:07]} Kf7 {[%emt 0:00:31]} 38. axb6 {[%emt 0:00:09]} axb6 {[%emt 0:00:08]} 39. Bf3 {[%emt 0:02:04]} c5 {[%emt 0:02:18]} 40. bxc5 {[%emt 0:00:00]} bxc5 {[%emt 0:00:00]} 41. Bc3 {[%emt 0:02:46]} g5 {[%emt 0:07:08]} 42. Bh5+ {[%emt 0:00:16]} Kf8 {[%emt 0:04:24]} 43. Kc4 {[%emt 0:02:13]} gxf4 {[%emt 0:00:50]} 44. e4 {[%emt 0:10:25]} Kg7 {[%emt 0:00:42]} 45. Kb5 {[%emt 0:00:45]} Bd6 {[%emt 0:10:11]} 46. Kc6 {[%emt 0:06:58]} Be5 {[%emt 0:06:52]} 47. Bxe5 {[%emt 0:00:04]} fxe5 {[%emt 0:00:05]} 48. Kxc5 {[%emt 0:00:07]} Kf6 {[%emt 0:00:05]} 49. Kd6 {[%emt 0:07:14]} Kg5 {[%emt 0:00:03]} 50. Be2 {[%emt 0:00:04]} f3 {[%emt 0:00:39]} 51. Bxf3 {[%emt 0:00:04]} Kf4 {[%emt 0:00:03]} 52. Bg2 {[%emt 0:00:09]} Kg3 {[%emt 0:01:14]} 53. Bh1 {[%emt 0:00:05]} Kf4 {[%emt 0:01:48]} 54. Kxe6 {[%emt 0:00:20]} h5 {[%emt 0:00:03]} 55. Kd5 {[%emt 0:00:12]} h4 {[%emt 0:00:04]} 56. Bg2 {[%emt 0:00:10]} Kg3 {[%emt 0:00:24]} 57. Bf1 {[%emt 0:00:06]} 1-0

[Event "Cracovia Festival-A 2023"]
[Site "Krakow"]
[Date "2023.12.29"]
[Round "3.20"]
[White "Skytte, Rasmus"]
[Black "Fodor, Balazs"]
[Result "1/2-1/2"]
[ECO "D10"]
[WhiteElo "2337"]
[BlackElo "2225"]
[Annotator "ChessBase"]
[PlyCount "97"]
[EventDate "2023.12.24"]
[EventType "swiss"]
[EventCountry "POL"]
[SourceTitle "playchess.com"]
[Source "ChessBase"]
[SourceQuality "1"]
[TimeControl "40/5400+30:1800+30"]

1. d4 {[%emt 0:01:14]} d5 {[%emt 0:01:12]} 2. c4 {[%emt 0:01:03]} c6 {[%emt 0:00:15]} 3. cxd5 {[%emt 0:00:24]} cxd5 {[%emt 0:00:09]} 4. Bf4 {[%emt 0:00:06]} Nc6 {[%emt 0:00:14]} 5. e3 {[%emt 0:00:25]} Nf6 {[%emt 0:00:26]} 6. Nc3 {[%emt 0:00:08]} a6 {[%emt 0:00:06]} 7. Bd3 {[%emt 0:00:59]} Bg4 {[%emt 0:00:10]} 8. Nge2 {[%emt 0:02:38]} e6 {[%emt 0:00:10]} 9. O-O {[%emt 0:00:38]} Bd6 {[%emt 0:02:15]} 10. Qb3 {[%emt 0:03:48]} O-O {[%emt 0:08:33]} 11. Bxd6 {[%emt 0:05:14]} Qxd6 {[%emt 0:00:19]} 12. Ng3 {[%emt 0:00:38]} b5 {[%emt 0:23:14]} 13. h3 {[%emt 0:02:47]} Bh5 {[%emt 0:00:10]} 14. Nxh5 {[%emt 0:00:12]} Nxh5 {[%emt 0:00:08]} 15. a4 {[%emt 0:06:40]} b4 {[%emt 0:01:39]} 16. Nb1 {[%emt 0:02:24]} Na5 {[%emt 0:03:54]} 17. Qd1 {[%emt 0:00:31]} Nf6 {[%emt 0:00:09]} 18. Nd2 {[%emt 0:00:48]} Rfc8 {[%emt 0:11:17]} 19. Qe2 {[%emt 0:02:06]} Qb6 {[%emt 0:06:01]} 20. Rac1 {[%emt 0:09:59]} Rxc1 {[%emt 0:05:17]} 21. Rxc1 {[%emt 0:00:14]} g6 {[%emt 0:00:43]} 22. Qf3 {[%emt 0:08:06]} Ne8 {[%emt 0:01:55]} 23. h4 {[%emt 0:00:33]} Qd8 {[%emt 0:02:58]} 24. h5 {[%emt 0:01:00]} Rc8 {[%emt 0:01:32]} 25. Qd1 {[%emt 0:01:00]} Rxc1 {[%emt 0:02:18]} 26. Qxc1 {[%emt 0:00:10]} Qc7 {[%emt 0:00:37]} 27. Qxc7 {[%emt 0:09:55]} Nxc7 {[%emt 0:00:08]} 28. h6 {[%emt 0:00:48]} Kf8 {[%emt 0:03:42]} 29. g4 {[%emt 0:03:34]} f6 {[%emt 0:00:43]} 30. f4 {[%emt 0:01:36]} Kf7 {[%emt 0:07:08]} 31. Kf2 {[%emt 0:01:46]} Nc6 {[%emt 0:01:36]} 32. Nf3 {[%emt 0:02:34]} Kf8 {[%emt 0:02:47]} 33. Ke2 {[%emt 0:01:56]} f5 {[%emt 0:04:06]} 34. g5 {[%emt 0:12:43]} Ke7 {[%emt 0:00:30]} 35. Kd1 {[%emt 0:00:53]} Kf8 {[%emt 0:05:57]} 36. Kc2 {[%emt 0:00:39]} a5 {[%emt 0:00:45]} 37. Nd2 {[%emt 0:04:37]} Nd8 {[%emt 0:00:08]} 38. Nf3 {[%emt 0:05:31]} Nf7 {[%emt 0:01:00]} 39. Kb3 {[%emt 0:01:55]} Ke7 {[%emt 0:00:20]} 40. Bb5 {[%emt 0:00:00]} Kd8 {[%emt 0:00:00]} 41. Be2 {[%emt 0:07:27]} Ne8 {[%emt 0:12:53]} 42. Kc2 {[%emt 0:02:44]} Kc7 {[%emt 0:02:23]} 43. Nd2 {[%emt 0:00:36]} Nfd6 {[%emt 0:00:48]} 44. Nb3 {[%emt 0:06:03]} Nb7 {[%emt 0:00:27]} 45. Ba6 {[%emt 0:02:43]} Ned6 {[%emt 0:00:09]} 46. Bxb7 {[%emt 0:01:33]} Nxb7 {[%emt 0:00:06]} 47. Nc1 {[%emt 0:06:35]} Nd8 {[%emt 0:00:29]} 48. Nd3 {[%emt 0:04:04]} Kd6 {[%emt 0:00:27]} 49. Ne5 {[%emt 0:01:16]} 1/2-1/2

[Event "Cracovia Festival-A 2023"]
[Site "Krakow"]
[Date "2023.12.29"]
[Round "3.21"]
[White "Mirski, Stanislaw"]
[Black "Lewicki, Miroslaw"]
[Result "0-1"]
[ECO "A46"]
[WhiteElo "2187"]
[BlackElo "2321"]
[Annotator "ChessBase"]
[PlyCount "138"]
[EventDate "2023.12.24"]
[EventType "swiss"]
[EventCountry "POL"]
[SourceTitle "playchess.com"]
[Source "ChessBase"]
[SourceQuality "1"]
[TimeControl "40/5400+30:1800+30"]

1. d4 {[%emt 0:00:03]} Nf6 {[%emt 0:00:40]} 2. Nf3 {[%emt 0:00:06]} e6 {[%emt 0:00:58]} 3. g3 {[%emt 0:00:02]} c5 {[%emt 0:01:10]} 4. Bg2 {[%emt 0:02:35]} Nc6 {[%emt 0:00:15]} 5. O-O {[%emt 0:00:10]} d5 {[%emt 0:01:36]} 6. c4 {[%emt 0:01:06]} dxc4 {[%emt 0:01:21]} 7. Qa4 {[%emt 0:02:40]} cxd4 {[%emt 0:04:24]} 8. Nxd4 {[%emt 0:00:23]} Qxd4 {[%emt 0:02:24]} 9. Bxc6+ {[%emt 0:00:03]} bxc6 {[%emt 0:07:30]} 10. Qxc6+ {[%emt 0:00:28]} Qd7 {[%emt 0:00:05]} 11. Qxa8 {[%emt 0:00:13]} Bc5 {[%emt 0:00:07]} 12. Nc3 {[%emt 0:42:58]} O-O {[%emt 0:00:19]} 13. Qf3 {[%emt 0:00:27]} Bb7 {[%emt 0:01:02]} 14. e4 {[%emt 0:00:01]} Bb4 {[%emt 0:05:05]} 15. Qd1 {[%emt 0:03:34]} Qc7 {[%emt 0:03:35]} 16. f3 {[%emt 0:06:17]} Qb6+ {[%emt 0:02:00]} 17. Kg2 {[%emt 0:01:12]} Rd8 {[%emt 0:00:49]} 18. Qe2 {[%emt 0:00:01]} Rd3 {[%emt 0:00:16]} 19. Bg5 {[%emt 0:04:22]} Nd7 {[%emt 0:03:30]} 20. Rad1 {[%emt 0:07:16]} f6 {[%emt 0:06:59]} 21. Bd2 {[%emt 0:04:48]} Be7 {[%emt 0:05:02]} 22. Be1 {[%emt 0:03:54]} Ne5 {[%emt 0:00:40]} 23. Bf2 {[%emt 0:00:40]} Qa5 {[%emt 0:00:23]} 24. Bd4 {[%emt 0:01:03]} Nc6 {[%emt 0:01:03]} 25. Be3 {[%emt 0:06:24]} Ba6 {[%emt 0:00:13]} 26. Qf2 {[%emt 0:00:44]} Qc7 {[%emt 0:06:58]} 27. Rxd3 {[%emt 0:02:37]} cxd3 {[%emt 0:00:05]} 28. Rd1 {[%emt 0:00:03]} g5 {[%emt 0:01:13]} 29. a4 {[%emt 0:03:12]} Bc4 {[%emt 0:03:04]} 30. Bc5 {[%emt 0:02:28]} Ne5 {[%emt 0:01:47]} 31. Bxe7 {[%emt 0:01:42]} Qxe7 {[%emt 0:00:05]} 32. f4 {[%emt 0:02:55]} gxf4 {[%emt 0:00:15]} 33. gxf4 {[%emt 0:00:02]} Ng6 {[%emt 0:00:17]} 34. b3 {[%emt 0:00:33]} Ba6 {[%emt 0:01:42]} 35. Nb5 {[%emt 0:01:57]} Bb7 {[%emt 0:03:21]} 36. Qxa7 {[%emt 0:00:39]} Bxe4+ {[%emt 0:02:20]} 37. Kf2 {[%emt 0:00:01]} Qb4 {[%emt 0:00:52]} 38. Qb8+ {[%emt 0:00:58]} Nf8 {[%emt 0:01:38]} 39. Qd8 {[%emt 0:00:51]} Qxb3 {[%emt 0:03:20]} 40. Rd2 {[%emt 0:00:00]} Qxa4 {[%emt 0:00:00]} 41. Nd4 {[%emt 0:04:59]} Qc4 {[%emt 0:15:18]} 42. Ke3 {[%emt 0:08:42]} f5 {[%emt 0:00:57]} 43. Qg5+ {[%emt 0:04:01]} Kf7 {[%emt 0:00:11]} 44. Qh5+ {[%emt 0:00:20]} Ke7 {[%emt 0:00:40]} 45. Qh4+ {[%emt 0:01:51]} Kd7 {[%emt 0:00:50]} 46. Rd1 {[%emt 0:08:23]} Qc3 {[%emt 0:03:36]} 47. Rd2 {[%emt 0:03:07]} Qc1 {[%emt 0:01:32]} 48. Nb3 {[%emt 0:00:10]} Qa3 {[%emt 0:01:40]} 49. Nd4 {[%emt 0:00:21]} Qa1 {[%emt 0:00:48]} 50. Rxd3 {[%emt 0:02:15]} Qg1+ {[%emt 0:02:37]} 51. Kd2 {[%emt 0:00:06]} Bxd3 {[%emt 0:00:56]} 52. Kxd3 {[%emt 0:00:03]} Qd1+ {[%emt 0:00:42]} 53. Ke3 {[%emt 0:00:25]} Qc1+ {[%emt 0:01:02]} 54. Kd3 {[%emt 0:00:29]} Qb1+ {[%emt 0:00:17]} 55. Kd2 {[%emt 0:01:36]} Qe4 {[%emt 0:01:30]} 56. Ne2 {[%emt 0:00:02]} Qb4+ {[%emt 0:02:29]} 57. Kd3 {[%emt 0:00:23]} Qe4+ {[%emt 0:05:43]} 58. Kd2 {[%emt 0:00:03]} Qb4+ {[%emt 0:01:45]} 59. Kd3 {[%emt 0:00:01]} Qa3+ {[%emt 0:00:14]} 60. Kd2 {[%emt 0:00:11]} Qb2+ {[%emt 0:00:55]} 61. Kd3 {[%emt 0:00:15]} Qg7 {[%emt 0:00:07]} 62. Qf2 {[%emt 0:00:51]} Ke8 {[%emt 0:02:34]} 63. Qb6 {[%emt 0:01:19]} Qg2 {[%emt 0:00:38]} 64. Qb8+ {[%emt 0:02:29]} Kf7 {[%emt 0:00:16]} 65. Nd4 {[%emt 0:00:31]} Qxh2 {[%emt 0:01:09]} 66. Nc6 {[%emt 0:00:14]} Qg3+ {[%emt 0:03:03]} 67. Kc4 {[%emt 0:00:08]} Ng6 {[%emt 0:04:21]} 68. Qa7+ {[%emt 0:01:14]} Kg8 {[%emt 0:00:21]} 69. Qb8+ {[%emt 0:00:30]} Kg7 {[%emt 0:00:09]} 0-1

[Event "Cracovia Festival-A 2023"]
[Site "Krakow"]
[Date "2023.12.29"]
[Round "3.22"]
[White "Vasynda, Oleksandr"]
[Black "Berin, Artem"]
[Result "1-0"]
[ECO "A46"]
[WhiteElo "2153"]
[BlackElo "2321"]
[Annotator "ChessBase"]
[PlyCount "161"]
[EventDate "2023.12.24"]
[EventType "swiss"]
[EventCountry "POL"]
[SourceTitle "playchess.com"]
[Source "ChessBase"]
[SourceQuality "1"]
[TimeControl "40/5400+30:1800+30"]

1. d4 {[%emt 0:00:03]} Nf6 {[%emt 0:00:06]} 2. Nf3 {[%emt 0:00:06]} e6 {[%emt 0:00:05]} 3. Bf4 {[%emt 0:00:46]} b6 {[%emt 0:00:35]} 4. Nbd2 {[%emt 0:00:10]} Bb7 {[%emt 0:00:07]} 5. e3 {[%emt 0:00:10]} Be7 {[%emt 0:00:22]} 6. Bd3 {[%emt 0:00:16]} c5 {[%emt 0:00:10]} 7. c3 {[%emt 0:00:15]} cxd4 {[%emt 0:00:16]} 8. cxd4 {[%emt 0:01:27]} Nc6 {[%emt 0:01:07]} 9. a3 {[%emt 0:01:29]} d6 {[%emt 0:00:56]} 10. Qe2 {[%emt 0:02:14]} O-O {[%emt 0:05:54]} 11. e4 {[%emt 0:03:49]} e5 {[%emt 0:02:54]} 12. dxe5 {[%emt 0:06:08]} Nh5 {[%emt 0:00:24]} 13. Be3 {[%emt 0:00:50]} dxe5 {[%emt 0:00:20]} 14. O-O {[%emt 0:01:21]} Bf6 {[%emt 0:20:00]} 15. Rfd1 {[%emt 0:04:37]} Qe7 {[%emt 0:02:06]} 16. Nc4 {[%emt 0:07:42]} Rfe8 {[%emt 0:03:27]} 17. g3 {[%emt 0:05:04]} g6 {[%emt 0:02:54]} 18. Bd2 {[%emt 0:07:07]} Rad8 {[%emt 0:03:52]} 19. b4 {[%emt 0:05:58]} Nd4 {[%emt 0:10:17]} 20. Nxd4 {[%emt 0:00:28]} exd4 {[%emt 0:00:06]} 21. f3 {[%emt 0:00:39]} Bg7 {[%emt 0:07:55]} 22. Qf1 {[%emt 0:03:02]} Rc8 {[%emt 0:09:57]} 23. Rdc1 {[%emt 0:02:25]} Qe6 {[%emt 0:01:58]} 24. Qd1 {[%emt 0:03:08]} f5 {[%emt 0:04:30]} 25. exf5 {[%emt 0:03:35]} gxf5 {[%emt 0:00:10]} 26. Nb2 {[%emt 0:02:06]} Bd5 {[%emt 0:02:43]} 27. Rxc8 {[%emt 0:01:01]} Rxc8 {[%emt 0:00:44]} 28. Rc1 {[%emt 0:00:13]} Rc3 {[%emt 0:05:08]} 29. Kg2 {[%emt 0:15:39]} Rxa3 {[%emt 0:07:59]} 30. Qc2 {[%emt 0:00:36]} Ra2 {[%emt 0:03:35]} 31. Re1 {[%emt 0:00:24]} Qd7 {[%emt 0:01:45]} 32. Bxf5 {[%emt 0:01:23]} Rxb2 {[%emt 0:00:57]} 33. Bxh7+ {[%emt 0:00:42]} Kh8 {[%emt 0:00:04]} 34. Qxb2 {[%emt 0:00:08]} Kxh7 {[%emt 0:00:11]} 35. Qc2+ {[%emt 0:00:06]} Kh8 {[%emt 0:00:33]} 36. Qg6 {[%emt 0:00:45]} Bf7 {[%emt 0:00:34]} 37. Qg5 {[%emt 0:03:17]} Nf6 {[%emt 0:01:31]} 38. Qh4+ {[%emt 0:01:12]} Kg8 {[%emt 0:00:58]} 39. Bh6 {[%emt 0:02:25]} Qd5 {[%emt 0:01:04]} 40. Bg5 {[%emt 0:00:00]} Nh7 {[%emt 0:00:00]} 41. Bh6 {[%emt 0:03:40]} Bxh6 {[%emt 0:13:18]} 42. Qxh6 {[%emt 0:00:10]} Ng5 {[%emt 0:00:05]} 43. Qf6 {[%emt 0:03:16]} Qa2+ {[%emt 0:03:41]} 44. Kg1 {[%emt 0:04:08]} Qd2 {[%emt 0:08:17]} 45. Re7 {[%emt 0:04:46]} Qc1+ {[%emt 0:03:35]} 46. Kg2 {[%emt 0:01:25]} Qc2+ {[%emt 0:00:48]} 47. Kh1 {[%emt 0:00:45]} Qg6 {[%emt 0:02:39]} 48. Qxd4 {[%emt 0:01:45]} Nxf3 {[%emt 0:00:20]} 49. Qd8+ {[%emt 0:02:12]} Kg7 {[%emt 0:00:13]} 50. Rxa7 {[%emt 0:00:42]} Qb1+ {[%emt 0:01:37]} 51. Kg2 Qf5 {[%emt 0:01:14]} 52. Qxb6 {[%emt 0:02:23]} Ne1+ {[%emt 0:00:21]} 53. Kg1 {[%emt 0:00:05]} Nf3+ {[%emt 0:00:45]} 54. Kg2 {[%emt 0:00:08]} Qe4 {[%emt 0:00:51]} 55. Rxf7+ {[%emt 0:00:26]} Kxf7 {[%emt 0:00:04]} 56. Qf2 {[%emt 0:00:06]} Ke7 {[%emt 0:00:54]} 57. Qxf3 {[%emt 0:00:16]} Qc2+ {[%emt 0:00:09]} 58. Kf1 {[%emt 0:00:46]} Qb1+ {[%emt 0:00:18]} 59. Kf2 {[%emt 0:01:23]} Qxb4 {[%emt 0:00:24]} 60. Qe3+ {[%emt 0:00:53]} Kd7 {[%emt 0:00:12]} 61. h4 {[%emt 0:01:52]} Qb2+ {[%emt 0:00:22]} 62. Kf3 {[%emt 0:00:12]} Qf6+ {[%emt 0:00:40]} 63. Kg4 {[%emt 0:00:16]} Qg6+ {[%emt 0:00:18]} 64. Qg5 {[%emt 0:00:12]} Qe4+ {[%emt 0:00:11]} 65. Qf4 {[%emt 0:00:12]} Qg6+ {[%emt 0:00:48]} 66. Kh3 {[%emt 0:00:05]} Ke8 {[%emt 0:00:31]} 67. Qe5+ {[%emt 0:00:40]} Kf7 {[%emt 0:00:19]} 68. h5 {[%emt 0:00:24]} Qb1 {[%emt 0:00:34]} 69. Qf4+ {[%emt 0:00:38]} Ke6 {[%emt 0:00:57]} 70. Qg4+ {[%emt 0:00:12]} Ke5 {[%emt 0:00:32]} 71. Qg5+ {[%emt 0:00:24]} Kd4 {[%emt 0:00:05]} 72. Qf4+ {[%emt 0:00:19]} Kd5 {[%emt 0:00:07]} 73. Kg4 {[%emt 0:00:19]} Ke6 {[%emt 0:00:29]} 74. Kg5 {[%emt 0:01:05]} Qb5+ {[%emt 0:00:11]} 75. Kh6 {[%emt 0:00:12]} Qd3 {[%emt 0:00:36]} 76. g4 {[%emt 0:00:32]} Qd1 {[%emt 0:01:05]} 77. g5 {[%emt 0:00:27]} Qa1 {[%emt 0:00:28]} 78. Qe4+ {[%emt 0:00:05]} Kd7 {[%emt 0:00:43]} 79. Qf5+ {[%emt 0:00:12]} Kc7 {[%emt 0:00:09]} 80. Qf7+ {[%emt 0:00:06]} Kc8 {[%emt 0:00:17]} 81. Qf8+ {[%emt 0:00:10]} 1-0